[Event "Germany Countries-chT Youth 2022"]
[Site "Wiesbaden"]
[Date "2022.10.01"]
[Round "2"]
[White "Pohle, Saskia"]
[Black "Kellner, Anton"]
[Result "1-0"]
[ECO "B99"]
[WhiteElo "1756"]
[BlackElo "1382"]
[Annotator "NA RC COMBH"]
[PlyCount "61"]
[EventDate "2022.09.28"]
[EventType "team-tourn"]
[EventRounds "7"]
[EventCountry "GER"]
[SourceTitle "playchess.com"]
[Source "ChessBase"]
[SourceQuality "1"]
[TimeControl "40/5400+30:1800+30"]

1. e4 {[%emt 0:00:02]} c5 {[%emt 0:00:06]} 2. Nf3 {[%emt 0:00:04]} d6 {[%emt 0:00:05]} 3. d4 {[%emt 0:00:05]} cxd4 {[%emt 0:00:05]} 4. Nxd4 {[%emt 0:00:05]} Nf6 {[%emt 0:00:10]} 5. Nc3 {[%emt 0:00:07]} a6 {[%emt 0:00:05]} 6. Bg5 {[%emt 0:00:37]} e6 {[%emt 0:00:17]} 7. f4 {[%emt 0:00:49]} Be7 {[%emt 0:00:11]} 8. Qf3 {[%emt 0:00:23]} Qc7 {[%emt 0:00:32]} 9. O-O-O {[%emt 0:01:07]} Nbd7 {[%emt 0:00:17]} 10. g4 {[%emt 0:00:49]} b5 {[%emt 0:00:48]} 11. h4 {[%emt 0:06:42]} Bb7 {[%emt 0:00:31]} 12. Bxf6 {[%emt 0:01:39]} Bxf6 {[%emt 0:03:03]} 13. g5 {[%emt 0:01:12]} Bxd4 {[%emt 0:01:19]} 14. Rxd4 {[%emt 0:00:08]} Rc8 {[%emt 0:01:12]} 15. a3 {[%emt 0:05:22]} Nc5 {[%emt 0:02:10]} 16. Bxb5+ {[%emt 0:16:49]} axb5 {[%emt 0:00:45]} 17. Nxb5 {[%emt 0:00:12]} Qc6 {[%emt 0:07:16]} 18. Nxd6+ {[%emt 0:00:53]} Ke7 {[%emt 0:00:18]} 19. Nxc8+ {[%emt 0:01:14]} Rxc8 {[%emt 0:00:14]} 20. Re1 {[%emt 0:07:21]} Qc7 {[%emt 0:03:51]} 21. Rc4 {[%emt 0:08:24]} Qd7 {[%emt 0:06:03]} 22. Rd1 {[%emt 0:03:27]} Qb5 {[%emt 0:06:09]} 23. Qc3 {[%emt 0:01:38]} Nxe4 {[%emt 0:06:45]} 24. Rc7+ {[%emt 0:00:08]} Kf8 {[%emt 0:02:02]} 25. Rxc8+ {[%emt 0:00:12]} Bxc8 {[%emt 0:00:13]} 26. Qxc8+ {[%emt 0:00:19]} Qe8 {[%emt 0:01:25]} 27. Rd8 {[%emt 0:00:07]} Nd6 {[%emt 0:00:12]} 28. Rxe8+ {[%emt 0:00:40]} Nxe8 {[%emt 0:00:06]} 29. Qc5+ {[%emt 0:00:18]} Kg8 {[%emt 0:00:11]} 30. Qe7 {[%emt 0:00:04]} Kh8 {[%emt 0:00:46]} 31. Qf8# {[%emt 0:00:13]} 1-0

[Event "Germany Countries-chT Youth 2022"]
[Site "Wiesbaden"]
[Date "2022.10.01"]
[Round "2"]
[White "Zoellner, Bente"]
[Black "Bezsonna, Polina"]
[Result "1/2-1/2"]
[ECO "A48"]
[WhiteElo "1756"]
[BlackElo "1649"]
[Annotator "NA RC COMBH"]
[PlyCount "43"]
[EventDate "2022.09.28"]
[EventType "team-tourn"]
[EventRounds "7"]
[EventCountry "GER"]
[SourceTitle "playchess.com"]
[Source "ChessBase"]
[SourceQuality "1"]
[TimeControl "40/5400+30:1800+30"]

1. d4 {[%emt 0:00:03]} Nf6 {[%emt 0:00:09]} 2. Nf3 {[%emt 0:00:11]} g6 {[%emt 0:00:17]} 3. Bg5 {[%emt 0:00:14]} Ne4 {[%emt 0:00:57]} 4. Bh4 {[%emt 0:00:29]} Bg7 {[%emt 0:03:45]} 5. c3 {[%emt 0:02:28]} c5 {[%emt 0:02:21]} 6. e3 {[%emt 0:05:25]} cxd4 {[%emt 0:03:24]} 7. cxd4 {[%emt 0:03:53]} d5 {[%emt 0:02:24]} 8. Bd3 {[%emt 0:04:11]} Qa5+ {[%emt 0:03:33]} 9. Nbd2 {[%emt 0:02:46]} Nxd2 {[%emt 0:00:19]} 10. Nxd2 {[%emt 0:01:31]} Nc6 {[%emt 0:02:07]} 11. O-O {[%emt 0:02:19]} O-O {[%emt 0:00:38]} 12. Nb3 {[%emt 0:03:38]} Qd8 {[%emt 0:02:33]} 13. Bb5 {[%emt 0:05:39]} h6 {[%emt 0:05:37]} 14. Rc1 {[%emt 0:02:47]} Bd7 {[%emt 0:07:10]} 15. Nc5 {[%emt 0:04:55]} Bc8 {[%emt 0:16:59]} 16. Bxc6 {[%emt 0:05:40]} bxc6 {[%emt 0:00:22]} 17. Qa4 {[%emt 0:02:03]} Qe8 {[%emt 0:01:31]} 18. Na6 {[%emt 0:03:50]} Bxa6 {[%emt 0:02:56]} 19. Qxa6 {[%emt 0:00:54]} e5 {[%emt 0:01:56]} 20. Bg3 {[%emt 0:07:16]} exd4 {[%emt 0:09:44]} 21. exd4 {[%emt 0:01:23]} Qc8 {[%emt 0:01:52]} 22. Qa4 {[%emt 0:04:31]} 1/2-1/2

[Event "Germany Countries-chT Youth 2022"]
[Site "Wiesbaden"]
[Date "2022.10.01"]
[Round "2"]
[White "Braun, Julian"]
[Black "Voigt, Anastasia"]
[Result "1-0"]
[ECO "C54"]
[WhiteElo "1715"]
[BlackElo "1772"]
[Annotator "NA RC COMBH"]
[PlyCount "57"]
[EventDate "2022.09.28"]
[EventType "team-tourn"]
[EventRounds "7"]
[EventCountry "GER"]
[SourceTitle "playchess.com"]
[Source "ChessBase"]
[SourceQuality "1"]
[TimeControl "40/5400+30:1800+30"]

1. e4 {[%emt 0:00:01]} e5 {[%emt 0:00:04]} 2. Nf3 {[%emt 0:00:02]} Nc6 {[%emt 0:00:04]} 3. Bc4 {[%emt 0:00:05]} Bc5 {[%emt 0:00:04]} 4. c3 {[%emt 0:00:03]} Nf6 {[%emt 0:00:03]} 5. d4 {[%emt 0:00:04]} exd4 {[%emt 0:00:05]} 6. e5 {[%emt 0:00:03]} d5 {[%emt 0:00:05]} 7. Bb5 {[%emt 0:00:02]} Ne4 {[%emt 0:00:08]} 8. cxd4 {[%emt 0:00:10]} Bb6 {[%emt 0:00:08]} 9. Nc3 {[%emt 0:00:00]} O-O {[%emt 0:00:25]} 10. Be3 {[%emt 0:00:07]} Bg4 {[%emt 0:00:41]} 11. h3 {[%emt 0:00:12]} Bh5 {[%emt 0:00:05]} 12. Qc2 {[%emt 0:00:10]} Bg6 {[%emt 0:00:42]} 13. Qb3 {[%emt 0:00:13]} Ne7 {[%emt 0:00:24]} 14. O-O {[%emt 0:00:12]} c6 {[%emt 0:00:25]} 15. Bd3 {[%emt 0:00:25]} Nd2 {[%emt 0:01:10]} 16. Nxd2 {[%emt 0:00:07]} Bxd3 {[%emt 0:00:05]} 17. Rfe1 {[%emt 0:00:06]} Bg6 {[%emt 0:00:27]} 18. Na4 {[%emt 0:01:10]} Nf5 {[%emt 0:01:46]} 19. Nxb6 {[%emt 0:01:59]} axb6 {[%emt 0:00:07]} 20. Nf3 {[%emt 0:01:03]} Nxe3 {[%emt 0:06:00]} 21. Rxe3 {[%emt 0:01:43]} b5 {[%emt 0:02:58]} 22. Rae1 {[%emt 0:02:28]} Ra4 {[%emt 0:04:55]} 23. a3 {[%emt 0:07:02]} Qb6 {[%emt 0:06:07]} 24. e6 {[%emt 0:06:51]} fxe6 {[%emt 0:09:11]} 25. Rxe6 {[%emt 0:01:16]} Rc4 {[%emt 0:20:38]} 26. Qe3 {[%emt 0:04:51]} Rc2 {[%emt 0:05:00]} 27. Rxg6 {[%emt 0:06:34]} hxg6 {[%emt 0:05:47]} 28. Qd3 {[%emt 0:00:32]} Rxb2 {[%emt 0:02:44]} 29. Qxg6 {[%emt 0:00:29]} 1-0

[Event "Germany Countries-chT Youth 2022"]
[Site "Wiesbaden"]
[Date "2022.10.01"]
[Round "2"]
[White "Nechitailo, Nikita"]
[Black "Buchinger, Alexis"]
[Result "1-0"]
[ECO "C54"]
[WhiteElo "1651"]
[BlackElo "1802"]
[Annotator "NA COMBH"]
[PlyCount "122"]
[EventDate "2022.09.28"]
[EventType "team-tourn"]
[EventRounds "7"]
[EventCountry "GER"]
[SourceTitle "playchess.com"]
[Source "ChessBase"]
[SourceQuality "1"]
[TimeControl "40/5400+30:1800+30"]

1. e4 {[%emt 0:00:02]} e5 {[%emt 0:00:11]} 2. Nf3 {[%emt 0:00:04]} Nc6 {[%emt 0:00:04]} 3. Bc4 {[%emt 0:00:02]} Bc5 {[%emt 0:00:06]} 4. c3 {[%emt 0:00:04]} Nf6 {[%emt 0:00:12]} 5. d4 {[%emt 0:00:04]} exd4 {[%emt 0:00:07]} 6. b4 {[%emt 0:00:02]} Bb6 {[%emt 0:03:09]} 7. e5 {[%emt 0:00:19]} d5 {[%emt 0:01:45]} 8. exf6 {[%emt 0:00:07]} dxc4 {[%emt 0:00:08]} 9. Qe2+ {[%emt 0:00:03]} Be6 {[%emt 0:01:28]} 10. fxg7 {[%emt 0:00:04]} Rg8 {[%emt 0:00:10]} 11. Bg5 {[%emt 0:00:04]} Qd5 {[%emt 0:00:52]} 12. Nbd2 {[%emt 0:08:20]} d3 {[%emt 0:03:55]} 13. Qe4 {[%emt 0:08:05]} Rxg7 {[%emt 0:04:55]} 14. Qh4 {[%emt 0:06:20]} Ne5 {[%emt 0:10:06]} 15. Ne4 {[%emt 0:13:17]} Nd7 {[%emt 0:21:19]} 16. O-O {[%emt 0:12:13]} Qf5 {[%emt 0:13:48]} 17. Rae1 {[%emt 0:03:58]} Qg6 {[%emt 0:07:24]} 18. Ng3 {[%emt 0:09:14]} c6 {[%emt 0:05:53]} 19. Nh5 {[%emt 0:05:53]} Rg8 {[%emt 0:00:40]} 20. Nf4 {[%emt 0:00:35]} Qf5 {[%emt 0:00:30]} 21. g4 {[%emt 0:00:48]} Rxg5 {[%emt 0:04:01]} 22. Qxg5 {[%emt 0:00:08]} Qxg5 {[%emt 0:00:04]} 23. Nxg5 {[%emt 0:00:05]} Nf8 {[%emt 0:00:06]} 24. Nfxe6 {[%emt 0:00:37]} Nxe6 {[%emt 0:00:19]} 25. Nxe6 {[%emt 0:00:04]} fxe6 {[%emt 0:00:06]} 26. Rxe6+ {[%emt 0:00:03]} Kf7 {[%emt 0:00:07]} 27. Re4 {[%emt 0:00:52]} Re8 {[%emt 0:00:06]} 28. Rxc4 {[%emt 0:02:18]} d2 {[%emt 0:04:39]} 29. Rf4+ {[%emt 0:00:16]} Kg6 {[%emt 0:00:09]} 30. Rf3 {[%emt 0:00:09]} Kg5 {[%emt 0:01:12]} 31. Rd3 {[%emt 0:00:46]} Re2 {[%emt 0:00:06]} 32. h3 {[%emt 0:02:43]} a5 {[%emt 0:04:09]} 33. a3 {[%emt 0:01:21]} a4 {[%emt 0:00:41]} 34. c4 {[%emt 0:00:44]} c5 {[%emt 0:05:19]} 35. bxc5 {[%emt 0:13:47]} Ba5 {[%emt 0:00:34]} 36. Kg2 {[%emt 0:03:40]} Re4 {[%emt 0:01:30]} 37. Rd1 {[%emt 0:01:41]} Rxc4 {[%emt 0:00:53]} 38. Rd5+ {[%emt 0:02:10]} Kg6 {[%emt 0:01:50]} 39. c6 {[%emt 0:00:42]} b5 {[%emt 0:01:49]} 40. Rd6+ {[%emt 0:01:04]} Kf7 {[%emt 0:00:51]} 41. Kf1 {[%emt 0:33:29]} Ke7 {[%emt 0:31:16]} 42. Rd5 {[%emt 0:01:32]} Rxc6 {[%emt 0:02:08]} 43. Rxb5 {[%emt 0:03:04]} Bc3 {[%emt 0:00:58]} 44. Ke2 {[%emt 0:01:02]} Rh6 {[%emt 0:00:00]} 45. Rh5 {[%emt 0:00:00]} Rxh5 {[%emt 0:00:00]} 46. gxh5 {[%emt 0:00:00]} Kf6 {[%emt 0:00:00]} 47. Rxd2 {[%emt 0:00:00]} Bxd2 {[%emt 0:00:00]} 48. Kxd2 {[%emt 0:00:00]} Kg5 {[%emt 0:00:00]} 49. Ke3 {[%emt 0:00:00]} Kxh5 {[%emt 0:00:00]} 50. Ke4 {[%emt 0:00:00]} Kg6 {[%emt 0:00:00]} 51. Ke5 {[%emt 0:00:00]} Kf7 {[%emt 0:00:00]} 52. f4 {[%emt 0:00:00]} Ke7 {[%emt 0:00:00]} 53. h4 {[%emt 0:00:00]} h6 {[%emt 0:00:00]} 54. h5 {[%emt 0:00:00]} Kf7 {[%emt 0:00:00]} 55. Kf5 {[%emt 0:00:00]} Kg8 {[%emt 0:00:54]} 56. Ke6 {[%emt 0:00:00]} Kf8 {[%emt 0:00:00]} 57. f5 {[%emt 0:00:00]} Kg7 {[%emt 0:00:00]} 58. f6+ Kf8 {[%emt 0:00:00]} 59. f7 {[%emt 0:00:00]} Kg7 {[%emt 0:00:00]} 60. Ke7 Kh8 {[%emt 0:00:00]} 61. Ke8 {[%emt 0:00:00]} Kh7 {[%emt 0:00:00]} 1-0

[Event "Germany Countries-chT Youth 2022"]
[Site "Wiesbaden"]
[Date "2022.10.01"]
[Round "2"]
[White "Neininger, Sarah"]
[Black "Struebel, Katharina"]
[Result "0-1"]
[ECO "C42"]
[WhiteElo "1589"]
[BlackElo "1273"]
[Annotator "NA COMBH"]
[PlyCount "96"]
[EventDate "2022.09.28"]
[EventType "team-tourn"]
[EventRounds "7"]
[EventCountry "GER"]
[SourceTitle "playchess.com"]
[Source "ChessBase"]
[SourceQuality "1"]
[TimeControl "40/5400+30:1800+30"]

1. e4 {[%emt 0:00:04]} e5 {[%emt 0:00:06]} 2. Nf3 {[%emt 0:00:07]} Nf6 {[%emt 0:00:10]} 3. Nxe5 {[%emt 0:00:12]} d6 {[%emt 0:00:12]} 4. Nf3 {[%emt 0:00:10]} Nxe4 {[%emt 0:00:14]} 5. d4 {[%emt 0:00:40]} d5 {[%emt 0:00:31]} 6. Be2 {[%emt 0:00:29]} Nc6 {[%emt 0:01:05]} 7. O-O {[%emt 0:01:02]} Be7 {[%emt 0:01:08]} 8. Be3 {[%emt 0:05:22]} O-O {[%emt 0:02:24]} 9. Nbd2 {[%emt 0:05:47]} Bf5 {[%emt 0:03:34]} 10. Nxe4 {[%emt 0:07:33]} Bxe4 {[%emt 0:02:04]} 11. c3 {[%emt 0:03:51]} f5 {[%emt 0:02:06]} 12. Qc1 {[%emt 0:08:04]} Qd6 {[%emt 0:03:14]} 13. Bg5 {[%emt 0:11:06]} Rae8 {[%emt 0:06:42]} 14. Bxe7 {[%emt 0:01:03]} Rxe7 {[%emt 0:02:32]} 15. Ne5 {[%emt 0:04:53]} Nxe5 {[%emt 0:04:28]} 16. dxe5 {[%emt 0:00:56]} Qb6 {[%emt 0:00:31]} 17. Kh1 {[%emt 0:01:40]} f4 {[%emt 0:02:49]} 18. c4 {[%emt 0:05:12]} Rxe5 {[%emt 0:05:59]} 19. cxd5 {[%emt 0:01:46]} Bxg2+ {[%emt 0:01:26]} 20. Kxg2 {[%emt 0:00:10]} Rxe2 {[%emt 0:00:17]} 21. Qc4 {[%emt 0:11:44]} f3+ {[%emt 0:00:59]} 22. Kh1 {[%emt 0:00:06]} Rxf2 {[%emt 0:02:05]} 23. Rxf2 {[%emt 0:03:53]} Qxf2 {[%emt 0:00:47]} 24. Rg1 {[%emt 0:00:15]} Rf7 {[%emt 0:04:50]} 25. Qb5 {[%emt 0:05:49]} Qe2 {[%emt 0:02:36]} 26. Qxe2 {[%emt 0:02:57]} fxe2 {[%emt 0:00:14]} 27. Kg2 {[%emt 0:00:13]} Rf1 {[%emt 0:00:22]} 28. Rxf1 {[%emt 0:00:25]} exf1=Q+ {[%emt 0:00:16]} 29. Kxf1 {[%emt 0:00:10]} Kf7 {[%emt 0:00:46]} 30. Kf2 {[%emt 0:00:34]} Kf6 {[%emt 0:00:18]} 31. Kf3 {[%emt 0:00:23]} Kf5 {[%emt 0:00:18]} 32. Ke3 {[%emt 0:00:37]} Ke5 {[%emt 0:00:09]} 33. Kf3 {[%emt 0:00:32]} Kxd5 {[%emt 0:01:07]} 34. Kf4 {[%emt 0:00:13]} c5 {[%emt 0:00:27]} 35. Ke3 {[%emt 0:00:19]} b5 {[%emt 0:00:26]} 36. Kd3 {[%emt 0:00:11]} a5 {[%emt 0:00:12]} 37. Kc3 {[%emt 0:00:24]} a4 {[%emt 0:01:10]} 38. a3 {[%emt 0:00:11]} c4 {[%emt 0:00:06]} 39. Kb4 {[%emt 0:00:50]} Kc6 {[%emt 0:00:43]} 40. Kc3 {[%emt 0:00:09]} Kc5 {[%emt 0:00:13]} 41. Kc2 {[%emt 0:30:12]} b4 {[%emt 0:30:20]} 42. Kd2 {[%emt 0:00:50]} bxa3 {[%emt 0:00:19]} 43. bxa3 {[%emt 0:00:07]} Kd4 {[%emt 0:00:08]} 44. Kc2 {[%emt 0:00:08]} c3 {[%emt 0:00:14]} 45. h3 {[%emt 0:00:28]} Kc4 {[%emt 0:00:24]} 46. h4 {[%emt 0:00:34]} h5 {[%emt 0:00:10]} 47. Kb1 {[%emt 0:00:37]} Kb3 {[%emt 0:00:07]} 48. Kc1 {[%emt 0:00:07]} c2 {[%emt 0:00:33]} 0-1

[Event "Germany Countries-chT Youth 2022"]
[Site "Wiesbaden"]
[Date "2022.10.01"]
[Round "2"]
[White "Aniol, Nico"]
[Black "Kocharin, Timur"]
[Result "0-1"]
[ECO "B14"]
[WhiteElo "1541"]
[BlackElo "1971"]
[Annotator "TA"]
[PlyCount "61"]
[EventDate "2022.09.28"]
[EventType "team-tourn"]
[EventRounds "7"]
[EventCountry "GER"]
[SourceTitle "playchess.com"]
[Source "ChessBase"]
[SourceQuality "1"]
[TimeControl "40/5400+30:1800+30"]

{[%evp 13,61,-18,-7,-20,-17,-30,0,-26,-25,-32,-33,-111,-21,-60,-45,-71,-72,-70,-52,-70,-74,-72,-62,-115,-100,-196,-31,-28,-31,-38,-29,-61,-55,-53,-53,-43,-17,-127,-129,-112,-112,-118,-14,-14,-14,-25,0,0,0,0]} 1. e4 {[%emt 0:00:08]} c6 {[%emt 0:00:29]} 2. d4 {[%emt 0:00:23]} d5 {[%emt 0:00:07]} 3. exd5 {[%emt 0:00:08]} cxd5 {[%emt 0:00:17]} 4. c4 {[%emt 0:00:16]} Nf6 {[%emt 0:00:16]} 5. Nc3 {[%emt 0:00:08]} g6 {[%emt 0:00:10]} 6. Nf3 {[%emt 0:01:00]} Bg7 {[%emt 0:00:34]} 7. c5 {[%emt 0:01:14]} O-O {[%emt 0:01:55]} 8. Be3 {[%emt 0:01:16] B14: Caro-Kann: Panov-Botvinnik Attack with 5...e6 and 5...g6.} Nc6 {[%emt 0:03:12]} 9. Bb5 {[%emt 0:00:21] [#]} Bf5 $146 {[%emt 0:06:49]} ({Predecessor:} 9... Bg4 10. h3 Bxf3 11. Qxf3 e5 12. dxe5 Nxe5 13. Qf4 Nh5 14. Qa4 d4 15. O-O-O a6 {½-½ (21) Warakomski,T (2505)-Tomczak,J (2551) Lazy 2014}) 10. Bxc6 {[%emt 0:02:49]} bxc6 {[%emt 0:00:03]} 11. O-O {[%emt 0:00:08]} Nd7 {[%emt 0:01:31]} 12. Bf4 {[%emt 0:02:17] [#]} (12. Nh4 $15) 12... f6 {[%emt 0:05:38]} ({Black should try} 12... Bg4 $1 $17 {Strongly threatening ...Bxf3.} 13. Bg5 Bxf3 14. gxf3 h6) 13. Re1 {[%emt 0:02:05]} Bg4 {[%emt 0:04:09][%cal Oe7e5]} 14. h3 {[%emt 0:07:02]} Bxf3 {[%emt 0:00:28]} 15. Qxf3 {[%emt 0:00:07]} e5 {[%emt 0:00:26]} 16. Be3 {[%emt 0:00:04]} f5 {[%emt 0:01:30]} 17. dxe5 {[%emt 0:04:39]} Nxe5 {[%emt 0:01:25]} 18. Qd1 {[%emt 0:00:18]} (18. Qg3 $15) 18... Nc4 $17 {[%emt 0:07:56]} 19. Na4 {[%emt 0:04:08]} (19. Bd4 $17 {keeps fighting.} Nxb2 20. Qd2) 19... Nxb2 $2 {[%emt 0:08:42]} (19... Qh4 $19 {aiming for ...Rae8.} 20. Bc1 Rab8) 20. Nxb2 $15 {[%emt 0:00:06]} Bxb2 {[%emt 0:00:05]} 21. Rb1 {[%emt 0:00:03]} Bc3 {[%emt 0:01:05]} 22. Re2 {[%emt 0:00:07]} Qc7 {[%emt 0:06:40]} 23. Bd4 {[%emt 0:02:29]} Bxd4 {[%emt 0:00:58]} 24. Qxd4 {[%emt 0:00:04]} Rfe8 {[%emt 0:02:13]} 25. Rbe1 {[%emt 0:01:36] [#]} (25. Reb2 $11) 25... Re4 $1 $17 {[%emt 0:01:40]} 26. Rxe4 {[%emt 0:01:41]} fxe4 {[%emt 0:01:56]} 27. Rb1 {[%emt 0:03:35]} Rb8 {[%emt 0:09:15]} ({Black should play} 27... Rf8 $17 {next ...Qg7 is good for Black.} 28. Qa4 Qd7) 28. Rxb8+ $11 {[%emt 0:02:16]} Qxb8 {[%emt 0:00:13]} 29. Qf6 $1 {[%emt 0:00:08]} Qc7 {[%emt 0:01:05]} (29... Qe8 $5 {[%cal Re4e3]}) 30. Qe6+ {[%emt 0:01:30]} Kg7 {[%emt 0:00:27]} 31. g4 {[%emt 0:00:07][%mdl 32768] Weighted Error Value: White=0.28 (precise) /Black=0.32. Loss on time!?} 0-1

[Event "Germany Countries-chT Youth 2022"]
[Site "Wiesbaden"]
[Date "2022.10.01"]
[Round "2"]
[White "Skembris, Simon Max"]
[Black "Möller, Maurin"]
[Result "0-1"]
[ECO "B40"]
[WhiteElo "1540"]
[BlackElo "1936"]
[Annotator "TA"]
[PlyCount "74"]
[EventDate "2022.09.28"]
[EventType "team-tourn"]
[EventRounds "7"]
[EventCountry "GER"]
[SourceTitle "playchess.com"]
[Source "ChessBase"]
[SourceQuality "1"]
[TimeControl "40/5400+30:1800+30"]

{[%evp 16,74,16,-8,16,-27,-16,-22,-17,-27,-22,-22,-16,-46,-16,-13,0,0,0,-17,-26,-21,-12,-28,-14,-75,-26,-47,-29,-29,-16,-15,-18,-21,-15,-196,-188,-191,-196,-242,-220,-220,-219,-253,-237,-399,-369,-29968,-29969,-29967,-29969,-29969,-29970,-29972,-29973,-29972,-29973,-29989,-29973,-29989,-29987]} 1. e4 {[%emt 0:00:01]} c5 {[%emt 0:00:05]} 2. Nf3 {[%emt 0:00:04]} e6 {[%emt 0:00:05]} 3. d4 {[%emt 0:00:06]} cxd4 {[%emt 0:00:04]} 4. Nxd4 {[%emt 0:00:06]} Nf6 {[%emt 0:00:04]} 5. Nc3 {[%emt 0:00:52]} Nc6 {[%emt 0:00:05]} 6. Nxc6 {[%emt 0:02:20]} bxc6 {[%emt 0:00:13]} 7. Bd3 {[%emt 0:00:30]} d5 {[%emt 0:01:29]} 8. O-O {[%emt 0:00:45]} Be7 {[%emt 0:03:08]} 9. Bg5 {[%emt 0:06:15]} h6 {[%emt 0:07:26] B40: Sicilian: 2...e6, Unusual lines.} 10. Bh4 {[%emt 0:02:05] [#]} Nxe4 $146 {[%emt 0:10:38]} ({Predecessor:} 10... Rb8 11. Rb1 O-O 12. e5 Nd7 13. Bxe7 Qxe7 14. f4 c5 15. Kh1 Nb6 16. Nb5 Bd7 17. Nd6 {0-1 (74) Schoeneberg,M (2322)-Hertneck,G (2539) Germany 2006}) 11. Bxe7 {[%emt 0:01:35]} Nxc3 {[%emt 0:00:20] The position is equal.} 12. Qg4 {[%emt 0:01:08]} Kxe7 {[%emt 0:00:27]} ({Much less strong is} 12... Qxe7 13. Qxg7 Ne2+ 14. Bxe2 $14) 13. bxc3 {[%emt 0:04:48][%cal Bb2c3,Bc3c4][%mdl 32]} Kf8 {[%emt 0:07:34]} 14. Rae1 {[%emt 0:02:56]} c5 {[%emt 0:02:35]} 15. c4 {[%emt 0:03:47]} h5 {[%emt 0:12:06]} 16. Qf4 {[%emt 0:04:03]} Rh6 {[%emt 0:00:32]} 17. Re5 {[%emt 0:03:46]} Bb7 {[%emt 0:09:11]} 18. Rfe1 {[%emt 0:05:05]} Kg8 {[%emt 0:00:45]} 19. cxd5 {[%emt 0:03:28]} Bxd5 {[%emt 0:00:39]} 20. Bc4 {[%emt 0:05:49] [#]} (20. Be4 $11 {remains equal.}) 20... Rf6 {[%emt 0:07:27]} ({Black should play} 20... Bxg2 $1 $17 {And now ...Rg6 would win.} 21. Bxe6 (21. Kxg2 Rg6+ 22. Kh1 Rg4 $17) 21... Rf6) 21. Qh4 $11 {[%emt 0:01:39] Threatens to win with Bxd5.} Rg6 $36 {[%emt 0:00:41][%csl LRg2,LRh4][%mdl 2048] Black has the initiative.} 22. Qxd8+ {[%emt 0:00:35]} Rxd8 {[%emt 0:00:02]} 23. Bxd5 {[%emt 0:00:45]} Rxd5 {[%emt 0:00:05]} 24. Rxd5 {[%emt 0:01:28]} exd5 {[%emt 0:00:01][%cal Be6d5,Bd5d4,Bd4d3,Bd3d2][%mdl 4128] Endgame KR-KR} 25. f3 $2 {[%emt 0:03:04] [#] This costs White the game.} (25. Re8+ $11 {and White is okay.} Kh7 26. Re5) 25... Re6 $1 $19 {[%emt 0:01:13]} 26. Rd1 {[%emt 0:01:23]} d4 {[%emt 0:00:15]} 27. Rd3 {[%emt 0:04:32]} (27. Kf1 $142) 27... Ra6 {[%emt 0:02:31]} 28. a3 {[%emt 0:00:45]} Ra4 {[%emt 0:00:19]} 29. Rb3 {[%emt 0:03:28]} Rc4 {[%emt 0:01:59]} 30. Rb7 $2 {[%emt 0:04:25]} (30. Rb2 {was worth a try.}) 30... Rxc2 {[%emt 0:00:29]} 31. Rxa7 $2 {[%emt 0:00:29]} (31. Rd7 $19) 31... d3 {[%emt 0:00:06] Black mates.} 32. Rd7 {[%emt 0:01:02]} d2 {[%emt 0:00:05]} 33. Kf1 {[%emt 0:00:24]} c4 {[%emt 0:00:03][%cal Bc5c4,Bc4c3][%mdl 32]} 34. a4 {[%emt 0:03:32]} c3 {[%emt 0:00:07]} 35. Ke2 {[%emt 0:01:21]} Rc1 {[%emt 0:00:07]} 36. Rd8+ {[%emt 0:00:06]} Kh7 {[%emt 0:00:05]} 37. a5 {[%emt 0:00:17]} Re1+ {[%emt 0:00:04] Weighted Error Value: White=0.45/Black=0.08 (flawless)} 0-1

[Event "Germany Countries-chT Youth 2022"]
[Site "Wiesbaden"]
[Date "2022.10.01"]
[Round "2"]
[White "Muller, Magnus"]
[Black "Geltz, Noah"]
[Result "0-1"]
[ECO "D30"]
[WhiteElo "1464"]
[BlackElo "2142"]
[Annotator "TA"]
[PlyCount "36"]
[EventDate "2022.09.28"]
[EventType "team-tourn"]
[EventRounds "7"]
[EventCountry "GER"]
[SourceTitle "playchess.com"]
[Source "ChessBase"]
[SourceQuality "1"]
[TimeControl "40/5400+30:1800+30"]

{[%evp 9,36,35,37,34,35,20,8,12,20,26,23,18,60,25,45,43,42,-11,-18,-41,-48,-51,-47,-47,-37,-33,-40,-57,-27]} 1. d4 {[%emt 0:00:25]} d5 {[%emt 0:01:17]} 2. c4 {[%emt 0:01:00]} e6 {[%emt 0:01:21]} 3. Nf3 {[%emt 0:00:38]} a6 {[%emt 0:00:11]} 4. Bg5 {[%emt 0:00:04]} Be7 {[%emt 0:00:11]} 5. Bxe7 {[%emt 0:00:05]} Qxe7 {[%emt 0:00:13]} 6. Nbd2 {[%emt 0:00:05] D30: Queen's Gambit Declined: Systems without Nc3.} Nf6 {[%emt 0:01:23]} 7. g3 {[%emt 0:00:30]} b6 {[%emt 0:01:59]} 8. Bg2 {[%emt 0:00:55] The position is equal.} Bb7 {[%emt 0:00:57]} 9. Rc1 {[%emt 0:01:34]} O-O {[%emt 0:05:04]} 10. O-O {[%emt 0:00:22]} c5 {[%emt 0:03:20] [#]} 11. Qb3 $146 {[%emt 0:12:36]} ({Predecessor:} 11. cxd5 exd5 12. Qb3 Qc7 13. dxc5 bxc5 14. Qa3 Nbd7 15. Nb3 c4 16. Na5 Rac8 17. Nxb7 Qxb7 {½-½ (66) Sargsyan,S (2639)-Indjic,A (2605) Terme Catez 2022}) 11... Qc7 {[%emt 0:12:41]} 12. Qa3 {[%emt 0:08:17]} Nbd7 {[%emt 0:01:51]} 13. b4 {[%emt 0:01:12]} (13. cxd5 $14 Bxd5 14. dxc5) 13... dxc4 $11 {[%emt 0:04:02]} 14. bxc5 {[%emt 0:00:56]} b5 {[%emt 0:00:20] Black is slightly better.} 15. Qb2 {[%emt 0:07:35]} Rfe8 {[%emt 0:10:06]} 16. Rfe1 {[%emt 0:03:17][%cal Oa2a4]} Rab8 {[%emt 0:04:18]} 17. e3 {[%emt 0:05:24]} e5 {[%emt 0:01:08]} 18. Qb1 {[%emt 0:04:54]} Qa5 {[%emt 0:12:17][%mdl 32768] Weighted Error Value: White=0.13 (very precise) /Black=0.06 (flawless) . Loss on time!?} 0-1